bitfinex/quotes_SOLUSD_20250529
["timestamp","ask_amount","ask_price","bid_price","bid_amount"]
[1748520488207,9.74,172.36,172.31,0.14216157]
[1748520488375,9.74,172.36,172.33,12.28739073]
[1748520488773,15.54212286,172.36,172.33,12.28739073]
[1748520489183,15.54212286,172.36,172.32,12.28739073]
[1748520489392,15.54212286,172.36,172.31,26.14216157]
[1748520489578,15.54212286,172.36,172.32,12.28739073]
[1748520491296,15.54212286,172.36,172.33,12.28739073]
[1748520492292,5.80212286,172.36,172.33,12.28739073]
[1748520492503,5.80212286,172.36,172.34,12.28739073]
[1748520492686,5.80113702,172.38,172.34,12.28739073]
[1748520492886,5.80046403,172.4,172.37,12.28739073]
[1748520493387,5.80046403,172.4,172.36,12.28739073]
[1748520494067,5.80046403,172.4,172.37,12.28739073]
[1748520494491,5.80046403,172.4,172.34,0.14216157]
[1748520494802,157.04,172.41,172.39,12.28739073]
[1748520494975,147.3,172.41,172.39,12.28739073]
[1748520495307,147.3,172.41,172.33,1.5897]
[1748520495308,12.28739073,172.4,172.33,1.5897]
[1748520495475,12.28739073,172.38,172.34,0.14216157]
[1748520495673,5.80080051,172.39,172.35,12.28739073]
[1748520495990,5.80080051,172.39,172.36,12.28739073]
[1748520496296,5.80080051,172.39,172.34,0.14216157]
[1748520496597,5.80080051,172.39,172.36,12.28739073]
[1748520497387,18.08785476,172.4,172.36,12.28739073]
[1748520498017,5.80046403,172.4,172.36,12.28739073]
[1748520498511,18.08785476,172.4,172.36,12.28739073]
[1748520499176,18.08785476,172.4,172.36,0.14216157]
[1748520500093,12.28739073,172.39,172.34,0.14216157]
[1748520500290,12.28739073,172.39,172.34,12.4295523]
[1748520501280,5.80113702,172.38,172.34,12.4295523]
[1748520501503,5.8001276,172.41,172.36,0.14216157]
[1748520501687,5.8001276,172.41,172.36,12.28739073]
[1748520502010,18.08751833,172.41,172.37,0.14216157]
[1748520502379,5.8001276,172.41,172.37,0.14216157]
[1748520502578,5.8001276,172.41,172.38,0.14216157]
[1748520504576,5.8001276,172.41,172.36,0.14216157]
[1748520506190,12.32801912,172.42,172.35,5.94419113]
[1748520507193,5.8001276,172.41,172.35,5.94419113]
[1748520508190,9.72,172.45,172.38,0.14216157]
[1748520508387,9.72,172.45,172.38,18.79181043]
[1748520508587,15.51887854,172.45,172.38,18.79181043]
[1748520508900,15.51887854,172.45,172.39,1.6603]
[1748520509227,9.72,172.45,172.4,0.14216157]
[1748520509413,9.72,172.45,172.4,18.79181043]
[1748520510030,147.3,172.48,172.41,0.14216157]
[1748520510241,147.3,172.48,172.42,18.79181043]
[1748520510437,5.79753029,172.49,172.42,18.79181043]
[1748520511781,5.79753029,172.49,172.46,0.14216157]
[1748520511986,5.79713401,172.5,172.46,0.14216157]
[1748520512191,162.81677628,172.51,172.46,0.14216157]
[1748520513716,12.32801912,172.5,172.46,0.14216157]
[1748520513884,12.32801912,172.5,172.45,0.14216157]
[1748520514308,12.32801912,172.47,172.42,26.14216157]
[1748520514519,12.32801912,172.47,172.44,0.14216157]
[1748520514721,12.32801912,172.47,172.42,0.14216157]
[1748520515314,5.79844601,172.46,172.42,0.14216157]
[1748520517739,5.79820617,172.47,172.42,0.14216157]
[1748520517902,9.72,172.51,172.42,0.14216157]
[1748520517903,18.12512056,172.5,172.44,26.0]
[1748520519033,5.79710144,172.5,172.44,26.0]
[1748520519216,18.12512056,172.5,172.44,26.0]
[1748520519520,5.79710144,172.5,172.44,26.0]
[1748520519748,5.79710144,172.5,172.45,0.14216157]
[1748520522631,20.28426422,172.55,172.47,0.14216157]
[1748520522837,5.79542161,172.55,172.48,26.0]
[1748520523011,5.79542161,172.55,172.49,0.14216157]
[1748520523410,5.79542161,172.55,172.49,26.14216157]
[1748520523626,5.79474995,172.57,172.49,44.933972]
[1748520524106,18.12276907,172.57,172.49,44.933972]
[1748520524346,5.79474995,172.57,172.49,44.933972]
[1748520528958,5.79474995,172.57,172.49,50.73132472]
[1748520529442,5.79440809,172.59,172.53,26.0]
[1748520529649,5.79440809,172.59,172.54,0.14216157]
[1748520531541,18.12242721,172.59,172.54,0.14216157]
[1748520531743,12.32801912,172.58,172.54,0.14216157]
[1748520532128,12.32801912,172.57,172.53,26.0]
[1748520532337,20.27960421,172.59,172.53,26.0]
[1748520532531,12.32801912,172.58,172.53,26.0]
[1748520533031,5.79474995,172.57,172.53,26.0]
[1748520533328,5.79474995,172.57,172.51,0.14216157]
[1748520533833,18.12276907,172.57,172.51,0.14216157]
[1748520534034,18.12276907,172.57,172.51,26.14216157]
[1748520534545,0.14216157,172.61,172.51,26.14216157]
[1748520534881,12.32801912,172.57,172.51,26.14216157]
[1748520535162,12.32801912,172.58,172.51,26.14216157]
[1748520536048,12.32801912,172.59,172.51,26.14216157]
[1748520537668,5.79441418,172.58,172.53,0.14216157]
[1748520540479,5.79441418,172.58,172.51,26.0]
[1748520540652,18.1224333,172.58,172.52,0.14216157]
[1748520541163,5.79441418,172.58,172.52,0.14216157]
[1748520541484,12.32801912,172.57,172.52,0.14216157]
[1748520541773,12.32801912,172.56,172.52,0.14216157]
[1748520541962,12.32801912,172.55,172.5,1.5741]
[1748520542169,12.32801912,172.55,172.51,0.14216157]
[1748520542383,12.32801912,172.54,172.48,26.14216157]
[1748520544180,20.28280017,172.56,172.48,26.14216157]
[1748520544565,5.79508576,172.56,172.5,0.14216157]
[1748520545075,5.79474995,172.57,172.51,0.14216157]
[1748520545274,5.79474995,172.57,172.52,0.14216157]
[1748520546272,12.32801912,172.59,172.52,0.14216157]
[1748520546584,12.32801912,172.58,172.52,0.14216157]
[1748520547191,12.32801912,172.59,172.52,0.14216157]
[1748520547566,12.32801912,172.59,172.52,18.79181043]
[1748520548186,5.79441418,172.58,172.52,18.79181043]
[1748520549790,12.32801912,172.59,172.52,18.79181043]
[1748520550087,12.32801912,172.56,172.5,44.933972]
[1748520550281,12.32801912,172.56,172.5,18.933972]
[1748520550592,12.32801912,172.54,172.5,26.14216157]
[1748520551273,12.32801912,172.52,172.47,0.14216157]
[1748520551595,12.32801912,172.53,172.47,26.14216157]
[1748520551892,5.79642939,172.52,172.47,26.14216157]
[1748520554580,5.79642939,172.52,172.47,0.14216157]
[1748520556497,12.32801912,172.52,172.47,0.14216157]
[1748520557693,20.28420571,172.55,172.47,0.14216157]
[1748520557893,18.12411255,172.53,172.47,0.14216157]
[1748520563191,5.7964774,172.52,172.47,18.933972]
[1748520564093,12.32801912,172.52,172.47,0.14216157]
[1748520564320,12.32801912,172.5,172.45,0.14216157]
[1748520564483,12.32801912,172.51,172.45,0.14216157]
[1748520564885,20.28642094,172.53,172.45,0.14216157]
[1748520565200,5.79706117,172.51,172.45,5.94092239]
[1748520565410,18.12508029,172.51,172.45,0.14216157]
[1748520566284,5.79706117,172.51,172.45,0.14216157]
[1748520566487,18.12508029,172.51,172.45,0.14216157]
[1748520567684,18.12508029,172.51,172.47,26.0]
[1748520568280,12.32801912,172.52,172.48,0.14216157]
[1748520568479,12.32801912,172.53,172.48,0.14216157]
[1748520568893,20.74345812,172.56,172.48,0.14216157]
[1748520569205,5.79609343,172.53,172.48,0.14216157]
[1748520569422,18.12411255,172.53,172.48,0.14216157]
[1748520570435,12.32801912,172.52,172.48,0.14216157]
[1748520570722,12.32801912,172.5,172.48,0.14216157]
[1748520571617,12.32801912,172.51,172.48,0.14216157]
[1748520571782,12.32801912,172.5,172.48,0.14216157]
[1748520572416,18.12545665,172.49,172.42,7.935]
[1748520572607,12.32801912,172.47,172.43,0.14216157]
[1748520572807,5.79743753,172.49,172.43,0.14216157]
[1748520572808,12.32801912,172.46,172.43,0.14216157]
[1748520573004,12.32801912,172.45,172.39,18.79181043]
[1748520573210,12.32801912,172.45,172.4,26.0]
[1748520573421,12.32801912,172.46,172.4,26.0]
[1748520573989,5.79878225,172.45,172.4,26.0]
[1748520576326,12.32801912,172.44,172.39,0.14216157]
[1748520576500,12.32801912,172.42,172.39,0.14216157]
[1748520576824,20.29573788,172.45,172.37,0.14216157]
[1748520577032,12.32801912,172.4,172.37,0.14216157]
[1748520577527,12.32801912,172.4,172.35,0.14216157]
[1748520577898,12.32801912,172.41,172.35,0.14216157]
[1748520578323,5.80046403,172.4,172.35,0.14216157]
[1748520578513,18.12824501,172.41,172.35,0.14216157]
[1748520580213,18.12824501,172.41,172.35,5.94426163]
[1748520580409,18.12824501,172.41,172.35,0.14216157]
[1748520583131,18.12849055,172.4,172.35,0.14216157]
[1748520583719,12.32801912,172.37,172.35,0.14216157]
[1748520584318,12.32801912,172.37,172.31,28.57181043]
[1748520584520,12.32801912,172.36,172.32,26.14216157]
[1748520584726,12.32801912,172.37,172.32,26.14216157]
[1748520585229,18.12927679,172.38,172.32,26.14216157]
[1748520585733,12.32801912,172.38,172.32,31.94525476]
[1748520585938,5.80055217,172.4,172.32,31.94525476]
[1748520586110,12.32801912,172.39,172.32,31.94525476]
[1748520586831,12.32801912,172.38,172.32,31.94525476]
[1748520590544,5.8001276,172.41,172.34,0.14216157]
[1748520590749,12.32801912,172.41,172.34,0.14216157]
[1748520591825,12.32801912,172.41,172.35,5.80214679]
[1748520592350,165.42786384,172.42,172.35,5.80214679]
[1748520593556,147.3,172.42,172.37,0.14216157]
[1748520593843,159.62801912,172.42,172.37,0.14216157]
[1748520594448,147.3,172.42,172.37,18.933972]
[1748520594773,12.32801912,172.44,172.37,18.933972]
[1748520595625,27.90711186,172.45,172.38,5.80113702]
[1748520596046,12.32801912,172.43,172.37,24.73533984]
[1748520597242,18.12756676,172.43,172.37,24.73533984]
[1748520600223,18.12756676,172.43,172.37,18.933972]
[1748520600464,12.32801912,172.41,172.37,26.14216157]
[1748520600823,12.32801912,172.42,172.37,26.14216157]
[1748520601324,12.32801912,172.41,172.37,26.14216157]
[1748520601524,12.32801912,172.41,172.35,0.14216157]
[1748520601922,18.12881963,172.39,172.35,0.14216157]
[1748520602123,18.12881963,172.39,172.34,0.14216157]
[1748520602324,12.32801912,172.38,172.35,26.0]
[1748520602540,12.32801912,172.38,172.32,26.02151356]
[1748520602541,12.32801912,172.37,172.33,0.14216157]
[1748520602929,12.32801912,172.38,172.33,0.14216157]
[1748520603958,5.80147357,172.37,172.33,0.14216157]
[1748520605243,7.8982,172.42,172.33,5.9449417]
[1748520605475,12.32801912,172.4,172.33,5.9449417]
[1748520605628,12.32801912,172.39,172.33,5.9449417]
[1748520606348,18.12869609,172.4,172.33,5.9449417]
[1748520606976,12.32801912,172.4,172.33,5.9449417]
[1748520607165,18.12821789,172.41,172.33,5.9449417]
[1748520608053,5.7997912,172.42,172.33,5.9449417]
[1748520608479,12.32801912,172.41,172.33,5.9449417]
[1748520608781,18.12781032,172.42,172.37,0.14216157]
[1748520608955,5.7997912,172.42,172.37,0.14216157]
[1748520609153,18.12754051,172.43,172.37,0.14216157]
[1748520609359,159.62801912,172.44,172.37,0.14216157]
[1748520609565,147.3,172.44,172.4,0.14216157]
[1748520611081,9.78,172.45,172.4,0.14216157]
[1748520611376,27.90689425,172.45,172.4,0.14216157]
[1748520611979,9.78,172.45,172.4,24.73437998]
[1748520612166,12.32801912,172.46,172.4,18.933972]
[1748520612352,18.1266209,172.46,172.4,24.73438672]
[1748520612674,12.32801912,172.46,172.4,24.73438672]
[1748520613052,18.12621757,172.47,172.4,24.73438672]
[1748520614473,5.79819845,172.47,172.4,24.73438672]
[1748520614810,147.3,172.48,172.4,24.73438672]
[1748520614811,165.42585364,172.48,172.4,24.73438672]
[1748520614978,165.42585364,172.48,172.4,61.01438672]
[1748520615567,153.09783452,172.48,172.4,61.01438672]
[1748520615789,165.42585364,172.48,172.4,61.01438672]
[1748520616097,165.42585364,172.48,172.4,55.213972]
[1748520618672,153.09783452,172.48,172.4,55.213972]
[1748520618874,153.09783452,172.48,172.41,0.14216157]
[1748520619085,153.09783452,172.48,172.4,55.213972]
[1748520619276,165.42585364,172.48,172.4,55.213972]
[1748520620377,153.09783452,172.48,172.4,55.213972]
[1748520620978,153.09783452,172.48,172.44,0.14216157]
[1748520621293,5.79783452,172.48,172.44,0.14216157]
[1748520624110,5.79783452,172.48,172.42,18.933972]
[1748520626282,12.32801912,172.47,172.42,0.14216157]
[1748520626487,12.32801912,172.46,172.41,0.14216157]
[1748520626781,20.29103136,172.49,172.41,0.14216157]
[1748520626991,12.32801912,172.47,172.41,0.14216157]
[1748520628092,5.79844601,172.46,172.41,0.14216157]
[1748520628407,12.32801912,172.45,172.39,0.14216157]
[1748520628982,12.32801912,172.45,172.38,18.933972]
[1748520629284,12.32801912,172.45,172.38,44.933972]
[1748520629613,5.79911853,172.44,172.38,44.933972]
[1748520632407,18.12713765,172.44,172.38,44.933972]
[1748520632911,5.79911853,172.44,172.38,44.933972]
[1748520633114,12.32801912,172.43,172.38,0.14216157]
[1748520634514,5.7997912,172.42,172.38,0.14216157]
[1748520634714,12.32801912,172.4,172.38,0.14216157]
[1748520635012,5.7997912,172.42,172.35,18.79181043]
[1748520635013,18.12781032,172.42,172.36,0.28432314]
[1748520636507,18.12781032,172.42,172.36,0.14216157]
[1748520636710,12.32801912,172.4,172.34,26.14216157]
[1748520636911,12.32801912,172.39,172.35,0.14216157]
[1748520637638,12.32801912,172.39,172.34,0.14216157]
[1748520638143,5.80113702,172.38,172.34,0.14216157]
[1748520642714,5.80113702,172.38,172.33,20.23064886]
[1748520642715,12.32801912,172.37,172.33,0.14216157]
[1748520643119,12.32801912,172.36,172.33,0.14216157]
[1748520643325,12.32801912,172.35,172.33,0.14216157]
[1748520643526,12.32801912,172.34,172.32,0.14216157]
[1748520643727,12.32801912,172.35,172.32,0.14216157]
[1748520645337,12.32801912,172.34,172.31,26.0]
[1748520646143,12.32801912,172.34,172.3,0.14216157]
[1748520647135,18.13056977,172.34,172.3,0.14216157]
[1748520647639,12.32801912,172.34,172.3,0.14216157]
[1748520648036,18.13023589,172.35,172.3,0.14216157]
[1748520649726,12.32801912,172.34,172.3,0.14216157]
[1748520651347,12.32801912,172.36,172.3,5.94586216]
[1748520651847,159.62801912,172.37,172.3,5.94586216]
[1748520652048,147.3,172.37,172.3,5.94586216]
[1748520652229,159.62801912,172.37,172.3,5.94586216]
[1748520652430,12.32801912,172.36,172.3,5.94586216]
[1748520653943,12.32801912,172.35,172.3,0.14216157]
[1748520654151,12.32801912,172.34,172.3,0.14216157]
[1748520654845,12.32801912,172.35,172.3,0.14216157]
[1748520656553,18.130247,172.35,172.3,0.14216157]
[1748520658140,12.32801912,172.34,172.3,0.14216157]
[1748520658340,12.32801912,172.33,172.3,26.0]
[1748520658861,18.13095069,172.33,172.3,26.0]
[1748520659764,12.32801912,172.34,172.3,26.0]
[1748520660168,12.32801912,172.33,172.3,26.0]
[1748520660350,12.32801912,172.32,172.28,0.14216157]
[1748520660861,18.13119085,172.32,172.28,0.14216157]
[1748520661943,12.32801912,172.31,172.28,0.14216157]
[1748520663158,18.1316767,172.31,172.26,0.14216157]
[1748520663438,12.32801912,172.3,172.24,0.14216157]
[1748520664379,18.13197017,172.3,172.24,0.14216157]
[1748520664564,12.32801912,172.28,172.24,0.14216157]
[1748520664865,12.32801912,172.28,172.23,0.14216157]
[1748520665068,12.32801912,172.27,172.23,0.14216157]
[1748520665841,12.32801912,172.26,172.21,26.0]
[1748520666048,12.32801912,172.24,172.18,0.14216157]
[1748520666391,12.32801912,172.24,172.2,26.0]
[1748520666392,18.13410366,172.24,172.2,26.0]
[1748520666581,12.32801912,172.23,172.18,26.14216157]
[1748520667392,12.32801912,172.23,172.17,18.933972]
[1748520667584,12.32801912,172.23,172.17,44.933972]
[1748520667790,12.32801912,172.23,172.17,50.74214044]
[1748520668221,18.13437541,172.23,172.17,0.28432314]
[1748520668527,5.80635629,172.23,172.16,35.6]
[1748520668695,5.80635629,172.23,172.17,0.14216157]
[1748520668696,12.32801912,172.21,172.17,0.14216157]
[1748520668894,12.32801912,172.2,172.17,0.14216157]
[1748520669099,12.32801912,172.2,172.15,26.0]
[1748520669712,5.80635629,172.23,172.11,11.35566157]
[1748520669713,18.13564363,172.19,172.13,0.14216157]
[1748520670015,18.13564363,172.19,172.11,11.2135]
[1748520670016,12.32801912,172.17,172.11,11.2135]
[1748520670227,12.32801912,172.16,172.12,0.14216157]
[1748520670903,12.32801912,172.17,172.12,0.14216157]
[1748520671315,156.88,172.22,172.12,18.933972]
[1748520671537,175.01459987,172.22,172.14,18.933972]
[1748520671728,147.3,172.22,172.15,5.80888759]
[1748520671909,147.3,172.22,172.16,0.14216157]
[1748520672625,5.80588328,172.24,172.16,18.933972]
[1748520672831,18.1339024,172.24,172.16,18.933972]
[1748520673333,12.32801912,172.23,172.16,18.933972]
[1748520673718,12.32801912,172.23,172.17,5.80821281]
[1748520674528,18.1339024,172.24,172.17,5.80821281]
[1748520675053,12.32801912,172.21,172.15,0.14216157]
[1748520675336,12.32801912,172.22,172.15,0.14216157]
[1748520675734,0.14216157,172.25,172.15,18.933972]
[1748520676051,12.32801912,172.19,172.15,26.14216157]
[1748520676540,12.32801912,172.2,172.15,26.14216157]
[1748520677519,12.32801912,172.19,172.15,0.14216157]
[1748520677725,12.32801912,172.19,172.14,0.14216157]
[1748520678357,18.13567256,172.19,172.13,0.14216157]
[1748520679345,12.32801912,172.18,172.13,0.14216157]
[1748520679522,18.13567256,172.19,172.13,0.14216157]
[1748520679843,18.13567256,172.19,172.11,0.14216157]
[1748520679844,12.32801912,172.15,172.11,0.14216157]
[1748520680219,18.13663031,172.16,172.11,0.14216157]
[1748520681228,18.13663031,172.16,172.11,26.14216157]
[1748520682553,12.32801912,172.15,172.11,0.14216157]
[1748520683766,5.80922504,172.14,172.1,26.0]
[1748520684731,18.13724416,172.14,172.08,0.14216157]
[1748520684923,12.32801912,172.12,172.08,0.14216157]
[1748520685117,12.32801912,172.13,172.06,0.28432314]
[1748520685644,12.32801912,172.13,172.06,6.09612431]
[1748520686438,18.13782917,172.13,172.06,6.09612431]
[1748520686815,12.32801912,172.11,172.06,0.14216157]
[1748520687217,12.32801912,172.11,172.05,0.14216157]
[1748520687823,12.32801912,172.1,172.05,0.14216157]
[1748520689035,5.81023763,172.11,172.05,0.14216157]
[1748520689221,18.13825675,172.11,172.05,0.14216157]
[1748520690356,18.13866804,172.1,172.05,0.14216157]
[1748520690744,26.0,172.12,172.05,5.95434278]
[1748520690745,38.32801912,172.11,172.05,5.95434278]
[1748520691947,12.32801912,172.13,172.05,24.60399164]
[1748520692278,153.10930291,172.14,172.07,0.14216157]
[1748520692746,147.3,172.14,172.06,0.28432314]
[1748520693128,147.3,172.14,172.06,19.07613357]
[1748520694057,147.3,172.14,172.08,18.933972]
[1748520694269,147.3,172.14,172.08,55.133972]
[1748520694561,18.13664591,172.16,172.08,55.133972]
[1748520695031,18.13664591,172.16,172.1,0.14216157]
[1748520695574,12.32801912,172.16,172.1,0.14216157]
[1748520695849,44.13633007,172.17,172.1,0.14216157]
[1748520696032,44.13633007,172.17,172.1,1.77536157]
[1748520696652,31.80831095,172.17,172.1,1.77536157]
[1748520696855,44.13633007,172.17,172.1,1.77536157]
[1748520698162,44.13633007,172.17,172.1,7.58587348]
[1748520698973,153.10763036,172.19,172.12,5.95181901]
[1748520699726,153.10763036,172.19,172.15,12.3597606]
[1748520699944,165.46739096,172.19,172.15,12.3597606]
[1748520700469,12.3597606,172.18,172.12,0.14216157]
[1748520700636,12.3597606,172.18,172.13,12.3597606]
[1748520700952,12.3597606,172.18,172.12,0.14216157]
[1748520700953,165.46739096,172.19,172.15,0.14216157]
[1748520702162,153.10763036,172.19,172.15,12.50192217]
[1748520703063,147.3,172.19,172.17,0.14216157]
[1748520703245,21.9597606,172.21,172.17,0.14216157]
[1748520703876,12.3597606,172.21,172.17,0.14216157]
[1748520704936,18.16707409,172.2,172.17,0.14216157]
[1748520705730,153.8538,172.23,172.17,12.50192217]
[1748520705731,5.80652653,172.22,172.17,12.50192217]
[1748520706033,7.7388,172.25,172.17,12.50192217]
[1748520706034,21.9597606,172.26,172.21,12.50192217]
[1748520706230,12.3597606,172.24,172.21,0.14216157]
[1748520706837,18.16527583,172.25,172.21,0.14216157]
[1748520708736,5.80551523,172.25,172.21,0.14216157]
[1748520709252,5.80551523,172.25,172.21,12.3597606]
[1748520711735,18.16527583,172.25,172.2,12.50192217]
[1748520713158,161.81224378,172.27,172.21,26.0]
[1748520713159,153.10503218,172.27,172.21,26.0]
[1748520713334,5.80383052,172.3,172.27,0.14216157]
[1748520713541,5.80383052,172.3,172.27,12.3597606]
[1748520714349,5.80383052,172.3,172.27,0.14216157]
[1748520719039,5.80383052,172.3,172.27,0.14216157]
[1748520720751,18.16359112,172.3,172.25,12.3597606]
[1748520720949,12.3597606,172.27,172.22,21.9597606]
[1748520721164,12.3597606,172.27,172.23,0.14216157]
[1748520721673,20.31340684,172.3,172.23,0.14216157]
[1748520721959,12.3597606,172.28,172.23,12.50192217]
[1748520722138,12.3597606,172.29,172.23,12.50192217]
[1748520722339,12.3597606,172.29,172.24,12.3597606]
[1748520722776,5.80450429,172.28,172.24,12.3597606]
[1748520723275,5.80450429,172.28,172.23,0.14216157]
[1748520723444,5.80450429,172.28,172.24,12.3597606]
[1748520725387,5.80450429,172.28,172.25,12.3597606]
[1748520726676,5.80416739,172.29,172.25,12.3597606]
[1748520727272,18.16392799,172.29,172.25,0.14216157]
[1748520729660,12.3597606,172.28,172.23,12.3597606]
[1748520729958,12.3597606,172.28,172.24,0.14216157]
[1748520730684,18.16392799,172.29,172.24,12.50192217]
[1748520731891,18.16392799,172.29,172.25,12.3597606]
[1748520731892,5.80416739,172.29,172.25,12.3597606]
[1748520732463,5.80416739,172.29,172.22,24.59825472]
[1748520732658,5.80416739,172.29,172.25,12.3597606]
[1748520734663,5.80416739,172.29,172.22,18.79181043]
[1748520734871,18.16392799,172.29,172.25,0.14216157]
[1748520737366,18.16392799,172.29,172.24,12.3597606]
[1748520737562,12.3597606,172.28,172.24,0.14216157]
[1748520737963,12.3597606,172.28,172.23,12.3597606]
[1748520738790,18.16392799,172.29,172.24,12.50192217]
[1748520740662,5.80416739,172.29,172.24,12.50192217]
[1748520740862,5.80416739,172.29,172.25,12.3597606]
[1748520741291,5.80416739,172.29,172.24,12.50192217]
[1748520741485,18.16392799,172.29,172.24,12.50192217]
[1748520742582,18.16392799,172.29,172.23,0.14216157]
[1748520742780,18.16392799,172.29,172.25,0.14216157]
[1748520743790,153.1039051,172.3,172.26,12.3597606]
[1748520745284,165.4636657,172.3,172.26,0.14216157]
[1748520745473,153.1039051,172.3,172.26,12.50192217]
[1748520748075,165.4636657,172.3,172.26,0.14216157]
[1748520751201,153.1039051,172.3,172.26,12.3597606]
[1748520752793,153.1039051,172.3,172.27,0.14216157]
[1748520759995,165.4636657,172.3,172.27,0.14216157]
[1748520761285,165.4636657,172.3,172.25,12.50192217]
[1748520761901,165.4636657,172.3,172.25,0.14216157]
[1748520762098,165.4636657,172.3,172.25,12.50192217]
[1748520762614,153.1039051,172.3,172.27,0.14216157]
[1748520766914,12.3597606,172.33,172.29,0.14216157]
[1748520767215,5.80282017,172.33,172.29,0.14216157]
[1748520767407,18.16258077,172.33,172.29,0.14216157]
[1748520769902,5.80282017,172.33,172.29,12.50192217]
[1748520770607,5.80282017,172.33,172.29,0.14216157]
[1748520770921,18.16258077,172.33,172.29,0.14216157]
[1748520775941,13.70067414,172.33,172.29,0.14216157]
[1748520777241,13.70067414,172.33,172.29,8.04001554]
[1748520777552,5.80282017,172.33,172.29,8.04001554]
[1748520779458,13.70067414,172.33,172.29,8.04001554]
[1748520780642,13.70067414,172.33,172.27,36.14]
[1748520780843,7.89785397,172.3,172.26,8.04001554]
[1748520781484,7.89785397,172.31,172.26,8.04001554]
[1748520781957,5.80383052,172.3,172.26,8.04001554]
[1748520783350,5.80383052,172.3,172.27,26.0]
[1748520784339,5.80383052,172.3,172.26,8.04001554]
[1748520784867,5.80383052,172.3,172.26,34.04001554]
[1748520790348,5.80383052,172.3,172.26,8.04001554]
[1748520792668,5.80383052,172.3,172.27,7.89785397]
[1748520793570,20.30987059,172.33,172.27,7.89785397]
[1748520793774,7.89785397,172.32,172.27,7.89785397]
[1748520795077,7.89785397,172.32,172.25,26.14216157]
[1748520795260,7.89785397,172.32,172.27,0.14216157]
[1748520796372,5.8034937,172.31,172.27,0.14216157]
[1748520797074,5.8034937,172.31,172.27,8.04001554]
[1748520799177,5.8034937,172.31,172.27,0.14216157]
[1748520799381,5.8034937,172.31,172.27,8.04001554]
[1748520799586,5.8034937,172.31,172.27,0.14216157]
[1748520800468,5.80327387,172.32,172.28,8.04001554]
[1748520800674,5.80327387,172.32,172.28,7.89785397]
[1748520801180,5.80327387,172.32,172.28,0.14216157]
[1748520803983,13.70112784,172.32,172.28,0.14216157]
[1748520804886,13.70112784,172.32,172.26,0.14216157]
[1748520805088,13.70112784,172.32,172.28,0.14216157]
[1748520805572,13.70112784,172.32,172.26,0.14216157]
[1748520805777,13.70112784,172.32,172.25,18.79181043]
[1748520805778,7.89785397,172.3,172.25,8.04001554]
[1748520805969,7.89785397,172.3,172.26,0.14216157]
[1748520806960,7.89785397,172.31,172.27,0.14216157]
[1748520807157,5.80383052,172.3,172.27,0.14216157]
[1748520809959,5.80383052,172.3,172.27,8.04001554]
[1748520810776,5.80352881,172.31,172.27,8.04001554]
[1748520812287,5.80311853,172.33,172.3,7.89785397]
[1748520813271,5.80248346,172.34,172.3,7.89785397]
[1748520813871,5.80248346,172.34,172.31,7.89785397]
[1748520814884,5.80248346,172.34,172.3,7.89785397]
[1748520819274,5.80211551,172.36,172.33,8.04001554]
[1748520820588,7.89785397,172.38,172.33,8.04001554]
[1748520821379,5.80147357,172.37,172.33,8.04001554]
[1748520822796,5.80147357,172.37,172.34,7.89785397]
[1748520823000,164.75785397,172.4,172.35,0.14216157]
[1748520823605,156.86,172.4,172.35,0.14216157]
[1748520823805,164.75785397,172.4,172.35,0.14216157]
[1748520824107,5.80080051,172.39,172.35,0.14216157]
[1748520827514,13.69865448,172.39,172.35,0.14216157]
[1748520836519,7.89785397,172.38,172.35,0.14216157]
[1748520838022,5.80147357,172.37,172.32,18.79181043]
[1748520838204,7.89785397,172.36,172.32,0.14216157]
[1748520838401,5.80147357,172.37,172.34,0.14216157]
[1748520838825,5.80120595,172.38,172.34,8.04001554]
[1748520840017,5.80080051,172.39,172.35,7.89785397]
[1748520840205,5.80080051,172.39,172.36,0.14216157]
[1748520843949,5.80080051,172.39,172.35,0.14216157]
[1748520845939,13.69865448,172.39,172.35,0.14216157]
[1748520846106,5.80080051,172.39,172.35,0.14216157]
[1748520847728,5.80080051,172.39,172.36,0.14216157]
[1748520850110,153.10052358,172.4,172.36,0.14216157]
[1748520850317,5.80052358,172.4,172.38,0.14216157]
[1748520851209,13.69798157,172.41,172.37,0.14216157]
[1748520851642,5.8001276,172.41,172.37,0.14216157]
[1748520851938,13.69798157,172.41,172.37,0.14216157]
[1748520852642,7.89785397,172.41,172.37,0.14216157]
[1748520854846,5.80046403,172.4,172.37,0.14216157]
[1748520855140,5.80046403,172.4,172.37,8.04001554]
[1748520855343,5.80046403,172.4,172.36,0.14216157]
[1748520855548,5.80046403,172.4,172.38,0.14216157]
[1748520856429,5.8001276,172.41,172.38,0.14216157]
[1748520856637,13.69798157,172.41,172.36,8.04001554]
[1748520857437,5.8001276,172.41,172.38,0.14216157]
[1748520859445,13.69798157,172.41,172.38,0.14216157]
[1748520859742,7.89785397,172.4,172.36,0.14216157]
[1748520860432,7.89785397,172.39,172.36,0.14216157]